bitfinex/quotes_SOLUSD_20260109
["timestamp","ask_amount","ask_price","bid_price","bid_amount"]
[1767945915350,9.24541683,139.03,138.98,7.87900709]
[1767945915850,22.38541683,139.04,138.98,17.12442392]
[1767945916235,9.24541683,139.03,138.98,7.87900709]
[1767945916553,19.49783691,139.04,138.98,13.56341846]
[1767945916754,19.49783691,139.04,138.99,0.71609199]
[1767945917154,5.68441137,139.03,138.99,7.91066405]
[1767945917969,19.49783691,139.04,138.99,13.59507542]
[1767945918374,7.1906971,139.07,139.0,0.71609199]
[1767945918375,0.67342554,139.07,139.0,0.71609199]
[1767945918668,0.67342554,139.07,139.02,5.68441137]
[1767945918971,0.67342554,139.06,139.01,6.40050336]
[1767945919269,0.67342554,139.06,139.01,13.59379464]
[1767945919447,0.67342554,139.06,139.02,5.68441137]
[1767945919647,0.67342554,139.06,139.01,13.59379464]
[1767945920056,0.67342554,139.06,139.01,7.90938327]
[1767945920256,0.67342554,139.06,139.01,13.59379464]
[1767945921064,0.67342554,139.04,139.0,12.87863644]
[1767945921447,0.67342554,139.03,138.97,0.71609199]
[1767945921643,0.67342554,139.02,138.98,7.19495476]
[1767945921849,0.67342554,139.02,138.98,12.87936613]
[1767945922870,0.67342554,139.02,138.99,12.87915647]
[1767945923771,0.67342554,139.02,138.99,7.19474795]
[1767945925674,0.67342554,139.02,138.99,12.87915932]
[1767945926474,0.67342554,139.02,138.99,5.68441137]
[1767945926769,13.81342554,139.04,139.0,5.68441137]
[1767945927173,0.67342554,139.04,139.01,5.68441137]
[1767945927371,0.66669128,139.02,138.96,0.71609199]
[1767945927554,13.80669128,139.02,138.98,5.68441137]
[1767945927749,0.66669128,139.02,138.98,5.68441137]
[1767945927962,0.66669128,139.02,138.98,12.87937469]
[1767945928378,0.66669128,139.02,138.99,12.87914477]
[1767945928869,13.80669128,139.03,138.99,7.91082539]
[1767945929054,13.80669128,139.03,139.0,5.68441137]
[1767945929447,13.80669128,139.03,138.99,13.59523676]
[1767945929652,0.66669128,139.03,138.99,13.59523676]
[1767945929853,0.67342554,139.08,139.02,6.40050336]
[1767945930048,0.67342554,139.08,139.03,6.40050336]
[1767945930253,13.80669128,139.07,139.03,6.40050336]
[1767945930450,13.80669128,139.07,139.03,0.71609199]
[1767945930652,13.80669128,139.07,139.04,5.68441137]
[1767945930653,0.66669128,139.07,139.04,5.68441137]
[1767945930850,13.81342554,139.09,139.05,6.40050336]
[1767945931054,13.81342554,139.09,139.06,5.68441137]
[1767945931267,13.81342554,139.09,139.05,6.40050336]
[1767945931463,13.81342554,139.09,139.05,13.59215825]
[1767945931671,6.25783691,139.08,139.03,0.71609199]
[1767945931867,6.25783691,139.08,138.98,0.28432314]
[1767945931868,13.14,139.09,139.05,6.40050336]
[1767945932066,13.71342554,139.1,139.05,6.40050336]
[1767945932279,0.57342554,139.1,139.07,5.68441137]
[1767945932883,13.14,139.11,139.07,5.68441137]
[1767945933377,13.70868128,139.16,139.1,6.35833182]
[1767945933678,13.70868128,139.16,139.1,0.67392045]
[1767945933679,5.68441137,139.14,139.1,0.67392045]
[1767945933887,6.24844281,139.14,139.08,6.35833182]
[1767945934061,6.24844281,139.14,139.09,0.67392045]
[1767945934261,0.56403144,139.14,139.09,0.67392045]
[1767945934779,5.68441137,139.13,139.09,0.67392045]
[1767945934977,0.56403144,139.14,139.09,0.67392045]
[1767945935158,5.68441137,139.13,139.09,0.67392045]
[1767945935355,0.56403144,139.14,139.09,0.67392045]
[1767945935567,5.68441137,139.13,139.09,0.67392045]
[1767945936680,5.68441137,139.12,139.08,0.67392045]
[1767945937274,5.68441137,139.09,139.02,0.67392045]
[1767945937476,25.43920113,139.14,139.05,0.67392045]
[1767945937692,5.68441137,139.1,139.07,0.67392045]
[1767945937868,5.68441137,139.09,139.05,0.67392045]
[1767945938063,5.68441137,139.1,139.05,0.67392045]
[1767945938266,5.68441137,139.1,139.05,7.86540613]
[1767945939158,0.099,139.11,139.06,0.67392045]
[1767945939390,5.68441137,139.09,139.06,0.67392045]
[1767945939692,5.78341137,139.11,139.06,0.67392045]
[1767945939869,5.68441137,139.11,139.06,0.67392045]
[1767945940375,5.68441137,139.09,139.06,0.67392045]
[1767945940575,5.68441137,139.1,139.06,7.86500889]
[1767945940889,5.68441137,139.1,139.07,0.67392045]
[1767945941778,5.68441137,139.12,139.07,0.67392045]
[1767945942694,13.239,139.14,139.09,0.67392045]
[1767945942905,15.4119048,139.12,138.97,0.67392045]
[1767945943064,0.28432314,139.09,138.88,15.0]
[1767945943403,0.28432314,139.09,138.89,5.68441137]
[1767945943404,5.68441137,138.98,138.89,5.68441137]
[1767945944072,5.68441137,138.98,138.9,4.963761]
[1767945944273,5.68441137,138.98,138.92,35.98958557]
[1767945944474,5.68441137,138.98,138.95,7.19646913]
[1767945944783,0.7018187,139.02,138.94,0.28432314]
[1767945945089,0.7018187,139.02,138.93,17.99424424]
[1767945945594,0.7018187,139.02,138.94,0.28432314]
[1767945945780,5.68441137,138.98,138.94,0.28432314]
[1767945945973,5.68441137,138.97,138.93,17.99424424]
[1767945946281,0.7018187,139.0,138.92,7.19838756]
[1767945946282,5.68441137,138.94,138.92,1e-08]
[1767945946487,5.68441137,138.93,138.87,14.67030407]
[1767945946684,0.7018187,138.96,138.87,14.67030407]
[1767945947194,0.7018187,138.98,138.89,17.99936906]
[1767945947685,5.68441137,138.95,138.91,0.67392045]
[1767945948776,5.68441137,138.97,138.92,7.87230801]
[1767945949491,5.68441137,138.94,138.89,0.67392045]
[1767945949786,5.68441137,138.94,138.9,7.19927087]
[1767945950386,5.68441137,138.94,138.9,7.87319132]
[1767945950694,5.68441137,138.94,138.9,7.87321493]
[1767945951477,17.98334443,139.02,138.91,0.67392045]
[1767945951682,5.68441137,138.96,138.91,0.67392045]
[1767945952176,5.68441137,138.97,138.92,0.67392045]
[1767945952383,5.68441137,138.97,138.93,0.67392045]
[1767945952585,20.33372706,139.01,138.89,0.28432314]
[1767945952586,5.68441137,138.95,138.89,0.67392045]
[1767945952786,5.68441137,138.95,138.9,7.87325092]
[1767945953001,5.68441137,138.95,138.91,0.67392045]
[1767945953196,5.68441137,138.96,138.91,0.67392045]
[1767945953395,5.68441137,138.97,138.92,0.67392045]
[1767945953697,5.68441137,138.94,138.9,7.19933047]
[1767945953889,0.7018187,138.96,138.9,25.19789058]
[1767945954200,6.38623007,138.96,138.9,30.88230195]
[1767945954394,6.38623007,138.96,138.9,25.19789058]
[1767945954695,5.68441137,138.94,138.89,20.33985481]
[1767945955087,5.68441137,138.94,138.9,0.67392045]
[1767945956297,5.68441137,138.96,138.91,0.67392045]
[1767945956697,0.7018187,138.96,138.89,0.67392045]
[1767945956918,0.7018187,138.95,138.9,0.67392045]
[1767945957104,0.7018187,138.9,138.87,13.35344149]
[1767945957280,0.66718124,138.87,138.79,18.01267196]
[1767945957483,5.68441137,138.85,138.8,7.20461095]
[1767945957791,5.68441137,138.85,138.8,25.21613832]
[1767945958377,5.68441137,138.84,138.81,13.14]
[1767945958800,5.68441137,138.84,138.82,7.20357297]
[1767945959006,5.68441137,138.85,138.82,7.20357297]
[1767945959181,5.68441137,138.86,138.82,7.20357297]
[1767945959385,6.38623007,138.87,138.82,7.20357297]
[1767945960001,6.38623007,138.87,138.82,25.2125054]
[1767945960304,6.35159261,138.89,138.83,18.82441137]
[1767945960477,6.35159261,138.89,138.83,13.14]
[1767945960478,0.66718124,138.89,138.83,13.14]
[1767945960676,0.66718124,138.89,138.83,18.82441137]
[1767945960889,7.19843567,138.92,138.86,5.68441137]
[1767945960890,0.7018187,138.91,138.86,5.68441137]
[1767945961090,0.7018187,138.91,138.87,13.14]
[1767945961802,0.7018187,138.95,138.89,0.67392045]
[1767945962006,0.70147233,138.93,138.84,25.20887352]
[1767945962305,0.70113285,138.91,138.86,0.67392045]
[1767945962481,6.38623007,138.95,138.89,6.35833182]
[1767945962803,6.38623007,138.95,138.89,19.49833182]
[1767945962999,5.68441137,138.94,138.89,13.81392045]
[1767945963386,6.33891341,138.94,138.89,13.81392045]
[1767945963790,0.65450204,138.96,138.91,6.40724623]
[1767945964180,0.65450204,138.99,138.92,0.72283486]
[1767945964383,6.33891341,138.98,138.93,13.14]
[1767945965002,0.65450204,138.98,138.93,19.54724623]
[1767945965204,0.65450204,138.98,138.94,7.19735137]
[1767945965510,6.33891341,139.0,138.94,13.6045976]
[1767945965710,5.68441137,138.99,138.94,7.92018623]
[1767945965897,0.65450204,139.0,138.95,5.68441137]
[1767945966205,0.65450204,139.0,138.95,6.40724623]
[1767945966504,13.14,139.04,138.96,6.40724623]
[1767945966505,6.33891341,139.02,138.96,6.40724623]
[1767945966805,0.65450204,139.02,138.97,18.82441137]
[1767945967191,0.65450204,139.02,138.97,26.74295922]
[1767945967392,0.65450204,139.02,138.99,5.68441137]
[1767945967602,0.65450204,139.03,138.99,5.68441137]
[1767945968109,7.19174727,139.05,139.01,5.68441137]
[1767945968110,0.69721716,139.05,139.01,5.68441137]
[1767945968309,109.48162853,139.07,139.02,13.14]
[1767945968695,0.69696235,139.05,139.01,5.68441137]
[1767945968895,103.79721716,139.07,139.02,13.14]
[1767945969099,0.67173677,139.06,139.02,13.14]
[1767945969293,0.67173677,139.06,139.02,18.82441137]
[1767945969508,0.69721716,139.08,139.03,5.68441137]
[1767945970111,0.69721716,139.08,139.04,5.68441137]
[1767945971415,0.69721716,139.08,139.04,12.87628775]
[1767945971804,0.69721716,139.08,139.05,5.68441137]
[1767945972021,0.69721716,139.08,139.04,12.87628775]
[1767945972312,0.69721716,139.08,139.04,7.19187638]
[1767945972612,0.69721716,139.08,139.04,12.87628775]
[1767945972796,0.69721716,139.08,139.04,5.68441137]
[1767945973116,0.69721716,139.08,139.03,7.88880608]
[1767945973416,0.69721716,139.08,139.04,5.68441137]
[1767945973798,0.69721716,139.08,139.04,12.87655002]
[1767945974733,6.38162853,139.08,139.03,0.69616124]
[1767945974912,6.38162853,139.08,139.03,6.38057261]
[1767945976424,6.38162853,139.08,138.95,35.98169719]
[1767945976425,0.67173677,139.07,138.88,15.69616124]
[1767945976601,0.67223627,139.0,138.95,5.68441137]
[1767945976797,0.67223627,139.0,138.81,0.69616124]
[1767945976798,0.69599284,138.95,138.81,0.69616124]
[1767945977114,0.69553654,138.9,138.85,7.89780769]
[1767945977320,5.68441137,138.89,138.85,7.89780769]
[1767945977712,0.69721716,138.94,138.86,7.8975572]
[1767945978033,5.68441137,138.93,138.87,0.69616124]
[1767945978317,5.68441137,138.93,138.88,0.69616124]
[1767945978516,9.25012014,138.93,138.89,7.1999424]
[1767945979621,9.25012014,138.93,138.84,0.14216157]
[1767945979622,0.69696235,138.89,138.8,0.69616124]
[1767945979801,0.69696235,138.89,138.79,7.20494221]
[1767945979802,9.25012014,138.84,138.79,7.20494221]
[1767945980106,9.25012014,138.84,138.8,7.90076632]
[1767945980728,9.25012014,138.84,138.8,0.69616124]
[1767945981699,9.25012014,138.84,138.8,7.90053722]
[1767945982419,0.69721716,138.87,138.8,25.91206459]
[1767945982620,9.25012014,138.84,138.8,25.91206459]
[1767945983720,0.69721716,138.87,138.8,25.91206459]
[1767945984027,9.25012014,138.85,138.8,25.91206459]
[1767945984227,9.25012014,138.85,138.8,7.90053722]
[1767945984429,0.69721716,138.87,138.81,0.69616124]
[1767945984631,9.25012014,138.85,138.81,0.69616124]
[1767945985622,9.25012014,138.86,138.81,0.69616124]
[1767945986127,9.25012014,138.86,138.81,7.89989999]
[1767945986512,0.69721716,138.87,138.81,7.89989999]
[1767945986916,9.25012014,138.87,138.82,0.69616124]
[1767945987315,9.25012014,138.87,138.82,9.94628138]
[1767945987522,9.25012014,138.87,138.82,0.69616124]
[1767945988033,9.25012014,138.88,138.82,17.14958514]
[1767945988437,9.92185691,138.88,138.82,17.14958514]
[1767945989432,9.25012014,138.89,138.84,0.69616124]
[1767945989630,0.69721716,138.89,138.77,0.69616124]
[1767945989834,9.25012014,138.87,138.82,0.69616124]
[1767945990333,0.67173677,138.88,138.82,7.89963669]
[1767945990839,9.25012014,138.89,138.83,9.94628138]
[1767945991010,0.69721716,138.9,138.84,0.69616124]
[1767945991216,9.9473373,138.9,138.84,0.69616124]
[1767945991520,9.25012014,138.89,138.85,7.20201656]
[1767945991928,0.69721716,138.9,138.85,7.8981778]
[1767945992233,9.9473373,138.9,138.85,7.8981778]
[1767945992629,36.87149795,139.01,138.85,7.8981778]
[1767945992630,0.66506913,138.93,138.87,0.71815601]
[1767945992838,9.25012014,138.92,138.87,0.71815601]
[1767945993133,9.25012014,138.94,138.89,0.71815601]
[1767945993512,9.91518927,138.94,138.89,0.71815601]
[1767945993716,9.25012014,138.93,138.89,0.71815601]
[1767945993916,9.91518927,138.94,138.89,0.71815601]
[1767945994848,9.91518927,138.94,138.9,7.19942404]
[1767945995030,9.25012014,138.94,138.9,7.19942404]
[1767945995845,0.66506913,138.95,138.9,7.19942404]
[1767945995846,9.25012014,138.93,138.9,7.19942404]
[1767945996024,9.25012014,138.94,138.9,7.91758005]
[1767945996425,9.91518927,138.95,138.9,7.91758005]
[1767945996940,9.25012014,138.95,138.9,0.71815601]
[1767945997238,9.25012014,138.96,138.91,0.71815601]
[1767945997940,0.70395215,138.97,138.9,16.44908799]
[1767945997941,9.95407229,139.0,138.94,9.96827615]
[1767945998137,0.70395215,139.0,138.94,9.96827615]
[1767945998338,0.70395215,139.0,138.95,0.71815601]
[1767945998549,9.25012014,139.01,138.96,0.71815601]
[1767945999140,9.25012014,139.01,138.97,7.91395366]
[1767945999928,9.95407229,139.02,138.97,7.91395366]
[1767946000224,9.25012014,139.01,138.97,7.91395366]
[1767946000636,9.25012014,139.02,138.98,0.71815601]
[1767946000837,9.25012014,139.03,138.98,0.71815601]
[1767946001040,0.70395215,139.04,138.99,7.91291822]
[1767946001236,9.95407229,139.04,138.99,7.91291822]
[1767946001433,0.70395215,139.07,139.0,0.71815601]
[1767946001637,9.25012014,139.05,139.0,0.71815601]
[1767946002027,0.70395215,139.07,139.0,0.71815601]
[1767946002240,0.70395215,139.07,139.01,0.71815601]
[1767946002641,0.70395215,139.07,139.01,9.96827615]
[1767946002642,9.25012014,139.06,139.01,9.96827615]
[1767946002851,0.70395215,139.07,139.01,0.71815601]
[1767946003054,0.70395215,139.07,139.03,7.19269222]
[1767946003232,9.25012014,139.08,139.03,7.91084823]
[1767946003550,0.70395215,139.0,138.8,35.99877444]
[1767946003849,9.25012014,138.91,138.84,9.96827615]
[1767946004048,9.25012014,138.91,138.85,0.71815601]
[1767946004262,9.25012014,138.91,138.86,0.71815601]
[1767946004554,17.81218765,139.0,138.86,0.71815601]
[1767946004848,9.25012014,138.92,138.87,7.91913203]
[1767946005349,7.19757136,138.94,138.87,17.16925217]
[1767946005548,9.25012014,138.93,138.87,7.91913203]
[1767946005741,9.25012014,138.92,138.87,7.91913203]
[1767946006060,0.70395215,138.84,138.69,3.75533203]
[1767946006260,0.69319276,138.81,138.7,25.23431866]
[1767946006428,9.25012014,138.76,138.7,25.23431866]
[1767946006635,9.25012014,138.75,138.7,25.23431866]
[1767946007659,9.25012014,138.72,138.69,7.21028145]
[1767946008153,0.70395215,138.69,138.61,0.71815601]
[1767946008357,0.099,138.67,138.58,0.71815601]
[1767946008548,9.25012014,138.6,138.56,0.71815601]
[1767946008746,0.60395215,138.66,138.57,0.71815601]
[1767946008952,0.60395215,138.66,138.58,0.21815601]
[1767946009144,9.25012014,138.63,138.58,0.21815601]
[1767946009347,9.25012014,138.62,138.58,25.47432572]
[1767946009540,9.25012014,138.63,138.58,25.47432572]
[1767946009748,9.25012014,138.64,138.58,24.47432572]
[1767946009946,0.70395215,138.65,138.6,9.25012014]
[1767946010140,9.95407229,138.65,138.58,6.4342045]
[1767946010752,0.70395215,138.67,138.62,9.25012014]
[1767946011136,0.70395215,138.67,138.6,0.28432314]
[1767946011137,9.95407229,138.67,138.61,9.25012014]
[1767946011337,0.70395215,138.67,138.62,7.21384751]
[1767946011540,0.70395215,138.67,138.63,9.25012014]
[1767946011743,0.70395215,138.67,138.62,16.46396765]
[1767946012352,0.70395215,138.67,138.65,9.25012014]
[1767946012754,0.70395215,138.67,138.64,9.25012014]
[1767946013150,0.70395215,138.72,138.66,9.25012014]
[1767946013361,0.70395215,138.72,138.7,9.25012014]
[1767946013562,0.70395215,138.72,138.71,9.25012014]
[1767946015141,0.70395215,138.72,138.67,7.21131933]
[1767946015338,0.70395215,138.7,138.63,7.21344586]
[1767946015649,0.70395215,138.7,138.66,9.25012014]
[1767946015957,6.6801107,138.75,138.69,9.25012014]
[1767946015958,6.38406285,138.75,138.69,9.25012014]
[1767946016139,6.38406285,138.75,138.68,9.25012014]
[1767946016140,7.20781676,138.74,138.68,9.25012014]
[1767946016343,9.25012014,138.69,138.6,0.71815601]
[1767946016661,9.25012014,138.7,138.5,27.29964732]
[1767946016662,0.69804324,138.61,138.5,27.29964732]
[1767946016979,0.70395215,138.6,138.57,9.25012014]
[1767946017439,0.70395215,138.6,138.58,9.25012014]
[1767946017640,34.49670025,138.64,138.56,7.21690045]
[1767946017641,7.21341593,138.64,138.56,7.21690045]
[1767946017958,0.70395215,138.63,138.59,9.25012014]
[1767946018157,0.70395215,138.63,138.56,7.21690045]
[1767946018352,0.70395215,138.63,138.6,9.25012014]
[1767946019161,9.95407229,138.66,138.6,9.25012014]
[1767946019341,9.95407229,138.66,138.61,9.25012014]
[1767946019342,0.70395215,138.65,138.61,9.25012014]
[1767946019749,0.70395215,138.67,138.61,9.25012014]
[1767946020048,0.70395215,138.67,138.62,9.25012014]
[1767946020561,0.70395215,138.67,138.6,7.93304178]
[1767946020743,9.95407229,138.69,138.64,7.21292556]
[1767946020947,9.95407229,138.69,138.63,9.25012014]
[1767946021155,0.70395215,138.69,138.63,9.25012014]
[1767946021349,9.95407229,138.69,138.63,7.21326113]
[1767946021570,9.95407229,138.66,138.61,16.46426376]
[1767946021772,0.70395215,138.66,138.62,16.46408517]
[1767946022174,0.70395215,138.66,138.63,9.25012014]
[1767946022373,0.70395215,138.66,138.62,7.21396503]
[1767946022569,0.70395215,138.66,138.6,0.71815601]
[1767946022570,0.70395215,138.69,138.64,9.25012014]
[1767946022962,0.70395215,138.69,138.62,0.67790762]
[1767946022963,0.70395215,138.69,138.65,16.46252547]
[1767946023779,0.63179215,138.69,138.65,7.21240533]
[1767946023992,6.6801107,138.76,138.59,0.28432314]
[1767946023993,18.02310271,138.72,138.59,0.67790762]
[1767946024280,9.25012014,138.68,138.63,16.46343144]
[1767946024496,9.25012014,138.7,138.64,9.25012014]
[1767946025351,9.25012014,138.7,138.64,9.92802776]
[1767946025873,7.74058574,138.72,138.64,0.67790762]
[1767946025874,0.099,138.71,138.64,0.67790762]
[1767946026071,9.25012014,138.7,138.65,7.21240533]
[1767946026268,7.74015134,138.73,138.66,9.25012014]
[1767946026576,9.25012014,138.72,138.66,9.25012014]
[1767946026761,9.25012014,138.71,138.66,9.92802776]
[1767946027279,9.25012014,138.72,138.67,9.25012014]
[1767946027579,9.78191229,138.73,138.66,0.67790762]
[1767946027879,9.78191229,138.73,138.67,9.25012014]
[1767946028253,9.78191229,138.73,138.68,16.46096525]
[1767946028460,9.78191229,138.73,138.68,7.21084511]
[1767946029176,0.53179215,138.75,138.68,17.17910858]
[1767946029386,0.53179215,138.77,138.71,9.25012014]
[1767946029561,9.25012014,138.78,138.72,9.96826347]
[1767946029880,0.53179215,138.79,138.73,0.71814333]
[1767946030072,0.53179215,138.79,138.74,9.96826347]
[1767946030073,9.25012014,138.79,138.74,9.96826347]
[1767946030278,9.25012014,138.8,138.75,7.2072072]
[1767946030575,7.20395587,138.82,138.76,9.96826347]
[1767946030576,9.25012014,138.82,138.76,9.96826347]
[1767946030766,9.25012014,138.82,138.77,9.25012014]
[1767946030966,9.25012014,138.83,138.77,9.25012014]
[1767946031165,0.099,138.84,138.78,0.71814333]
[1767946031166,9.25012014,138.84,138.78,0.71814333]
[1767946031368,9.25012014,138.83,138.78,0.71814333]
[1767946032361,9.25012014,138.83,138.78,7.92359663]
[1767946032864,9.25012014,138.83,138.78,17.17371677]
[1767946033065,9.25012014,138.83,138.78,7.92359663]
[1767946033260,0.099,138.85,138.78,17.17371677]
[1767946033464,9.77334256,138.79,138.72,0.71814333]
[1767946033768,9.25012014,138.76,138.72,0.71814333]
[1767946034169,9.25012014,138.75,138.72,0.71814333]
[1767946034368,9.25012014,138.76,138.72,7.92683721]
[1767946035175,9.25012014,138.78,138.73,9.96826347]
[1767946035377,9.25012014,138.79,138.74,9.96826347]
[1767946035576,9.25012014,138.8,138.74,9.96826347]
[1767946035770,0.53179215,138.81,138.74,0.71814333]
[1767946035967,0.53179215,138.81,138.74,9.96826347]
[1767946036168,9.25012014,138.8,138.74,9.96826347]
[1767946036770,9.25012014,138.8,138.75,7.2072072]
[1767946036972,0.53179215,138.81,138.75,7.2072072]
[1767946037172,9.25012014,138.8,138.75,7.2072072]
[1767946038066,9.25012014,138.82,138.76,9.96826347]
[1767946038266,0.099,138.83,138.76,9.96826347]
[1767946038267,9.25012014,138.81,138.76,0.71814333]
[1767946038785,9.25012014,138.8,138.76,7.92449318]
[1767946039690,9.25012014,138.79,138.7,0.71814333]
[1767946039866,9.25012014,138.78,138.73,0.71814333]
[1767946040067,0.52746422,138.8,138.73,7.20805652]
[1767946040297,9.25012014,138.76,138.73,7.20805652]
[1767946040585,5.70733762,138.76,138.73,7.20805652]
[1767946040763,5.70733762,138.76,138.72,7.92690918]
[1767946041683,5.70733762,138.77,138.72,7.92690918]
[1767946042889,5.70733762,138.77,138.73,0.71814333]
[1767946044682,7.3,138.76,138.74,7.20772668]
[1767946044874,5.70733762,138.77,138.74,7.20772668]
[1767946045885,5.70733762,138.75,138.7,18.74265303]
[1767946046093,5.70733762,138.75,138.71,7.20913955]
[1767946046299,5.70733762,138.75,138.71,7.92728288]
[1767946046478,12.38744832,138.8,138.71,7.92728288]
[1767946046479,5.70733762,138.74,138.71,7.92728288]
[1767946046794,0.43179215,138.78,138.71,7.92728288]
[1767946046795,5.70733762,138.73,138.71,7.92728288]
[1767946047172,7.63747257,138.78,138.71,7.92728288]
[1767946047372,5.70733762,138.73,138.71,7.92728288]
[1767946047590,7.30521589,138.77,138.71,7.92728288]
[1767946047894,5.70733762,138.73,138.71,7.92728288]
[1767946048792,5.70733762,138.74,138.71,7.92728288]
[1767946049896,13.00733762,138.74,138.71,7.92728288]
[1767946051794,7.3,138.74,138.71,7.92728288]
[1767946052196,13.00733762,138.74,138.71,7.20913955]
[1767946052399,13.00733762,138.74,138.71,0.71814333]
[1767946054005,13.00733762,138.74,138.72,7.20876585]
[1767946054183,7.3,138.74,138.72,7.20876585]
[1767946055396,0.099,138.84,138.74,0.7176094]
[1767946055595,5.70733762,138.8,138.75,0.7176094]
[1767946056185,5.70733762,138.8,138.76,7.9242972]
[1767946056390,5.70733762,138.79,138.76,7.9242972]
[1767946056775,0.42846422,138.83,138.76,25.94101671]
[1767946057099,5.70733762,138.8,138.76,25.94101671]
[1767946057680,5.70733762,138.8,138.77,0.7176094]
[1767946058293,0.10229465,138.82,138.76,7.20665541]
[1767946058497,0.10229465,138.82,138.77,1e-08]
[1767946058698,5.70733762,138.79,138.77,1e-08]
[1767946060796,5.70733762,138.8,138.77,1e-08]
[1767946061112,5.70733762,138.78,138.74,7.86389743]
[1767946061415,5.70733762,138.77,138.74,7.86389743]
[1767946061813,0.10552373,138.8,138.75,7.2067466]
[1767946062027,5.70733762,138.78,138.75,7.2067466]
[1767946062913,5.70733762,138.77,138.73,18.02015204]
[1767946063219,5.70733762,138.74,138.71,7.20894148]
[1767946063518,5.70733762,138.75,138.71,7.20894148]
[1767946063890,5.70733762,138.75,138.72,7.20869448]
[1767946064111,0.11179039,138.76,138.72,7.20869448]
[1767946064301,5.70733762,138.76,138.72,7.20869448]
[1767946065392,5.70733762,138.75,138.72,7.20869448]
[1767946065918,7.63775693,138.78,138.72,7.20869448]
[1767946066118,5.70733762,138.73,138.71,7.86588924]
[1767946066324,7.30546716,138.77,138.71,7.86588924]
[1767946066629,5.70733762,138.77,138.73,0.65665104]
[1767946066795,0.43179215,138.8,138.73,0.65665104]
[1767946066995,5.70733762,138.77,138.73,0.65665104]
[1767946067401,6.82227227,138.84,138.73,0.65665104]
[1767946067402,5.70733762,138.76,138.73,0.65665104]
[1767946068095,5.70733762,138.76,138.73,7.86462579]
[1767946068403,7.30421719,138.79,138.73,7.86462579]
[1767946068603,5.70733762,138.75,138.73,7.86462579]
[1767946070315,5.70733762,138.76,138.73,7.86462579]
[1767946070613,5.70733762,138.77,138.73,7.86462579]
[1767946070826,5.70733762,138.75,138.73,7.86462579]
[1767946071115,0.099,138.79,138.73,7.86462579]
[1767946071116,5.70733762,138.76,138.73,7.86462579]
[1767946073331,5.70733762,138.77,138.73,7.86462579]
[1767946074924,0.42846422,138.78,138.73,7.86462579]
[1767946075132,5.70733762,138.77,138.73,7.86462579]
[1767946075426,5.70733762,138.77,138.74,0.65665104]
[1767946075923,5.80963227,138.77,138.73,7.20797475]
[1767946076097,5.70733762,138.75,138.72,7.86528654]
[1767946076304,5.70733762,138.76,138.72,7.86528654]
[1767946076499,4.54427911,138.75,138.72,7.86528654]
[1767946076899,7.63776947,138.78,138.73,7.20810983]
[1767946077122,5.70733762,138.76,138.73,7.20810983]
[1767946077312,7.63776947,138.78,138.73,7.20810983]
[1767946077521,5.70733762,138.76,138.73,7.20810983]
[1767946079112,10.89862348,138.83,138.75,0.65665104]
[1767946079314,5.70733762,138.79,138.73,30.93606303]
[1767946079623,6.22661387,138.79,138.73,30.93606303]
[1767946079824,5.70733762,138.79,138.74,5.70733762]
[1767946080029,5.70733762,138.82,138.73,25.22872541]
[1767946080210,10.33888896,138.81,138.76,5.70733762]
[1767946080408,5.70733762,138.82,138.77,5.70733762]
[1767946080630,5.70733762,138.82,138.76,5.70733762]
[1767946080813,5.70733762,138.81,138.77,7.20616848]
[1767946081015,0.51927625,138.81,138.76,7.20649907]
[1767946081206,5.70733762,138.8,138.77,0.65665104]
[1767946082432,5.70733762,138.8,138.77,7.86260598]
[1767946083738,6.36839522,138.78,138.73,7.88659754]
[1767946083945,5.70733762,138.77,138.73,7.88659754]
[1767946084229,0.6610576,138.78,138.73,7.88659754]
[1767946084230,5.70733762,138.78,138.74,0.67877286]
[1767946084427,5.70733762,138.78,138.75,7.2072072]
[1767946084638,6.19968648,138.79,138.75,7.2072072]
[1767946084844,6.19968648,138.8,138.75,7.88598006]
[1767946085023,4.59981578,138.79,138.75,7.88598006]
[1767946085617,0.6911211,138.82,138.77,6.38611048]
[1767946085820,6.39845872,138.82,138.78,0.67877286]
[1767946086220,0.6911211,138.82,138.78,0.67877286]
[1767946086440,5.70733762,138.83,138.78,6.38611048]
[1767946086724,5.70733762,138.83,138.79,7.20513005]
[1767946086917,6.19968648,138.83,138.79,7.20513005]
[1767946087425,6.19968648,138.83,138.78,13.59157085]
[1767946087635,6.39452283,138.8,138.75,18.01735942]
[1767946087841,6.39452283,138.8,138.76,7.20635876]
[1767946087842,5.70733762,138.79,138.76,7.20635876]
[1767946088037,6.39452283,138.8,138.77,7.20616708]
[1767946088240,0.68718521,138.8,138.77,7.20616708]
[1767946088733,0.68718521,138.8,138.76,12.91402542]
[1767946089241,0.6911211,138.86,138.79,0.67877286]
[1767946089426,0.6911211,138.86,138.82,5.70733762]
[1767946089618,0.49234886,138.87,138.82,0.67877286]
[1767946089818,6.19968648,138.87,138.82,6.38611048]
[1767946090142,0.68913338,138.86,138.82,5.70733762]
[1767946090457,0.6911211,138.89,138.85,5.70733762]
[1767946090630,0.6911211,138.89,138.86,7.20149791]
[1767946090940,0.49234886,138.9,138.86,12.90883553]